[Event "11th Arad Open 2018"]
[Site "Arad"]
[Date "2018.08.07"]
[Round "4"]
[White "Ileana, George"]
[Black "Bai, Adelard"]
[Result "0-1"]
[ECO "C55"]
[WhiteElo "2324"]
[BlackElo "2071"]
[Annotator "NA"]
[PlyCount "97"]
[EventDate "2018.08.05"]
[EventType "swiss"]
[EventCountry "ROU"]
[SourceTitle "playchess.com"]
[Source "ChessBase"]
[SourceQuality "1"]
[TimeControl "40/5400+30:1800+30"]

1. e4 {[%emt 0:00:00]} e5 {[%emt 0:00:23]} 2. Nf3 {[%emt 0:00:00]} Nc6 {[%emt 0:00:19]} 3. Bc4 {[%emt 0:00:00]} Nf6 {[%emt 0:00:17]} 4. d3 {[%emt 0:00:00]} Be7 {[%emt 0:00:38]} 5. O-O {[%emt 0:01:01]} d6 {[%emt 0:00:28]} 6. c3 {[%emt 0:00:06]} O-O {[%emt 0:00:39]} 7. Re1 {[%emt 0:00:26]} Kh8 {[%emt 0:00:32]} 8. Nbd2 {[%emt 0:00:33]} Ng8 {[%emt 0:00:59]} 9. d4 {[%emt 0:01:29]} f5 {[%emt 0:01:02]} 10. dxe5 {[%emt 0:00:41]} fxe4 {[%emt 0:00:18]} 11. exd6 {[%emt 0:02:09]} cxd6 {[%emt 0:16:16]} 12. Nxe4 {[%emt 0:00:11]} Bg4 {[%emt 0:09:54]} 13. Be2 {[%emt 0:00:22]} d5 {[%emt 0:01:58]} 14. Ng3 {[%emt 0:00:19]} Qb6 {[%emt 0:07:52]} 15. Qb3 {[%emt 0:02:06]} Qc7 {[%emt 0:01:14]} 16. Be3 {[%emt 0:01:40]} Bxf3 {[%emt 0:00:59]} 17. Bxf3 {[%emt 0:00:10]} Rxf3 {[%emt 0:00:23]} 18. gxf3 {[%emt 0:00:21]} Ne5 {[%emt 0:04:48]} 19. Kg2 {[%emt 0:04:05]} Rf8 {[%emt 0:03:35]} 20. f4 {[%emt 0:00:27]} Ng6 {[%emt 0:15:21]} 21. Kf1 {[%emt 0:16:08]} Nxf4 22. Rad1 {[%emt 0:02:35]} Bh4 {[%emt 0:09:50]} 23. Rd4 {[%emt 0:01:38]} Bxg3 {[%emt 0:00:57]} 24. hxg3 {[%emt 0:00:05]} Ne6 {[%emt 0:00:23]} 25. Bf4 {[%emt 0:01:57]} Nxd4 {[%emt 0:01:43]} 26. Bxc7 {[%emt 0:00:44]} Nxb3 {[%emt 0:00:09]} 27. axb3 {[%emt 0:00:05]} Nf6 {[%emt 0:00:51]} 28. Kg2 {[%emt 0:00:22]} Kg8 {[%emt 0:03:36]} 29. Re7 {[%emt 0:01:04]} Rf7 {[%emt 0:05:19]} 30. Rxf7 {[%emt 0:00:24]} Kxf7 {[%emt 0:00:07]} 31. Kf3 {[%emt 0:01:13]} Ne4 {[%emt 0:01:12]} 32. Ke3 {[%emt 0:01:40]} Ke6 {[%emt 0:01:29]} 33. Bb8 {[%emt 0:00:32]} a6 {[%emt 0:00:18]} 34. b4 {[%emt 0:00:22]} g5 {[%emt 0:01:19]} 35. f3 {[%emt 0:01:39]} Nd6 {[%emt 0:00:28]} 36. b3 {[%emt 0:03:25]} h5 {[%emt 0:01:08]} 37. Kd4 {[%emt 0:02:49]} h4 {[%emt 0:04:14]} 38. gxh4 {[%emt 0:00:29]} gxh4 {[%emt 0:00:15]} 39. Ke3 {[%emt 0:00:18]} Nb5 {[%emt 0:01:05]} 40. c4 {[%emt 0:00:00]} d4+ {[%emt 0:00:00]} 41. Kd3 {[%emt 0:16:05]} Nd6 {[%emt 0:16:38]} 42. c5 {[%emt 0:00:18]} Nf5 {[%emt 0:00:19]} 43. Ke4 {[%emt 0:00:18]} h3 {[%emt 0:00:18]} 44. Bf4 {[%emt 0:02:49]} Kd7 {[%emt 0:04:26]} 45. b5 {[%emt 0:01:06]} axb5 {[%emt 0:01:11]} 46. b4 {[%emt 0:00:16]} Kc6 {[%emt 0:00:32]} 47. Bb8 {[%emt 0:01:08]} Nh4 {[%emt 0:00:38]} 48. Bg3 {[%emt 0:02:14]} d3 {[%emt 0:00:13]} 49. Kd4 0-1

[Event "11th Arad Open 2018"]
[Site "Arad"]
[Date "2018.08.07"]
[Round "4"]
[White "Yordanov, Lachezar"]
[Black "Gavrilescu, David"]
[Result "0-1"]
[ECO "D38"]
[WhiteElo "2314"]
[BlackElo "2468"]
[Annotator "ChessBase"]
[PlyCount "96"]
[EventDate "2018.08.05"]
[EventType "swiss"]
[EventCountry "ROU"]
[SourceTitle "playchess.com"]
[Source "ChessBase"]
[SourceQuality "1"]
[TimeControl "40/5400+30:1800+30"]

1. d4 {[%emt 0:00:00]} Nf6 {[%emt 0:00:00]} 2. c4 {[%emt 0:00:00]} e6 {[%emt 0:00:27]} 3. Nf3 {[%emt 0:00:00]} d5 {[%emt 0:00:29]} 4. Nc3 {[%emt 0:00:00]} Bb4 {[%emt 0:00:35]} 5. cxd5 {[%emt 0:00:13]} exd5 {[%emt 0:00:17]} 6. Bg5 {[%emt 0:00:07]} h6 {[%emt 0:00:26]} 7. Bxf6 {[%emt 0:00:06]} Qxf6 {[%emt 0:01:34]} 8. Qa4+ {[%emt 0:00:07]} Nc6 {[%emt 0:00:28]} 9. e3 {[%emt 0:00:06]} O-O {[%emt 0:05:44]} 10. Be2 {[%emt 0:00:05]} Be6 {[%emt 0:01:03]} 11. O-O {[%emt 0:00:12]} a6 {[%emt 0:00:45]} 12. Rfc1 {[%emt 0:01:41]} Bd6 {[%emt 0:00:59]} 13. a3 {[%emt 0:00:37]} Ne7 {[%emt 0:05:00]} 14. b4 {[%emt 0:00:20]} g5 {[%emt 0:01:39]} 15. Qd1 {[%emt 0:01:01]} g4 {[%emt 0:13:00]} 16. Ne1 {[%emt 0:00:33]} h5 {[%emt 0:01:04]} 17. g3 {[%emt 0:02:43]} Kg7 {[%emt 0:07:02]} 18. e4 {[%emt 0:06:23]} dxe4 {[%emt 0:02:26]} 19. Nxe4 {[%emt 0:00:09]} Qh6 {[%emt 0:01:43]} 20. Nxd6 {[%emt 0:01:19]} cxd6 {[%emt 0:02:46]} 21. Ng2 {[%emt 0:00:33]} Rac8 {[%emt 0:14:26]} 22. Ne3 {[%emt 0:06:53]} Nd5 {[%emt 0:03:36]} 23. Nxd5 {[%emt 0:18:05]} Bxd5 {[%emt 0:05:52]} 24. Rxc8 {[%emt 0:25:57]} Rxc8 {[%emt 0:00:22]} 25. Qd3 {[%emt 0:03:20]} Qe6 {[%emt 0:12:09]} 26. Bf1 {[%emt 0:02:12]} Qe4 {[%emt 0:02:51]} 27. Qxe4 {[%emt 0:00:10]} Bxe4 {[%emt 0:00:02]} 28. Re1 {[%emt 0:04:27]} d5 {[%emt 0:02:06]} 29. Bg2 {[%emt 0:01:54]} f5 {[%emt 0:01:02]} 30. Bxe4 {[%emt 0:00:20]} dxe4 {[%emt 0:06:15]} 31. b5 {[%emt 0:00:22]} a5 {[%emt 0:03:29]} 32. b6 {[%emt 0:00:04]} Kf6 {[%emt 0:01:21]} 33. Rb1 {[%emt 0:00:07]} Rc3 {[%emt 0:03:58]} 34. Rb5 {[%emt 0:00:06]} Rxa3 {[%emt 0:00:04]} 35. Rc5 {[%emt 0:00:05]} Rb3 {[%emt 0:00:28]} 36. Rxa5 {[%emt 0:00:10]} Rxb6 37. Ra8 {[%emt 0:01:30]} Rb1+ {[%emt 0:01:18]} 38. Kg2 {[%emt 0:00:01]} Rb2 {[%emt 0:00:07]} 39. Kg1 {[%emt 0:00:04]} Rb1+ {[%emt 0:01:34]} 40. Kg2 {[%emt 0:00:00]} Rb2 {[%emt 0:00:00]} 41. Kg1 {[%emt 0:15:13]} b5 {[%emt 0:26:44]} 42. Rf8+ {[%emt 0:01:25]} Ke6 {[%emt 0:01:00]} 43. Re8+ {[%emt 0:00:18]} Kd5 {[%emt 0:00:12]} 44. Re5+ {[%emt 0:00:07]} Kxd4 {[%emt 0:00:04]} 45. Rxf5 {[%emt 0:00:05]} b4 {[%emt 0:00:42]} 46. Rxh5 {[%emt 0:00:21]} b3 {[%emt 0:02:23]} 47. Rb5 {[%emt 0:00:50]} Kc4 {[%emt 0:00:22]} 48. Rb8 {[%emt 0:00:44]} Rc2 {[%emt 0:00:12]} 0-1

[Event "11th Arad Open 2018"]
[Site "Arad"]
[Date "2018.08.07"]
[Round "4"]
[White "Trifan, Andrei Ioan"]
[Black "Womacka, Mathias"]
[Result "1/2-1/2"]
[ECO "B96"]
[WhiteElo "2308"]
[BlackElo "2450"]
[Annotator "RC"]
[PlyCount "93"]
[EventDate "2018.08.05"]
[EventType "swiss"]
[EventCountry "ROU"]
[SourceTitle "playchess.com"]
[Source "ChessBase"]
[SourceQuality "1"]
[TimeControl "40/5400+30:1800+30"]

1. e4 {[%emt 0:00:00]} c5 {[%emt 0:00:00]} 2. Nf3 {[%emt 0:00:01]} d6 {[%emt 0:00:00]} 3. d4 {[%emt 0:00:56]} cxd4 {[%emt 0:00:00]} 4. Nxd4 {[%emt 0:00:06]} Nf6 {[%emt 0:00:00]} 5. Nc3 {[%emt 0:01:07]} a6 {[%emt 0:00:00]} 6. Bg5 {[%emt 0:00:11]} e6 {[%emt 0:00:16]} 7. f4 {[%emt 0:01:22]} h6 {[%emt 0:00:12]} 8. Bh4 {[%emt 0:00:41]} Qb6 {[%emt 0:00:12]} 9. Qd2 {[%emt 0:00:25]} Qxb2 {[%emt 0:00:19]} 10. Rb1 {[%emt 0:00:57]} Qa3 {[%emt 0:00:21]} 11. e5 {[%emt 0:00:47]} dxe5 {[%emt 0:02:42]} 12. fxe5 {[%emt 0:00:22]} g5 {[%emt 0:00:54]} 13. Bf2 {[%emt 0:03:21]} Ng4 {[%emt 0:02:26]} 14. Bg3 {[%emt 0:00:17]} Bg7 {[%emt 0:22:14]} 15. Bb5+ {[%emt 0:04:57]} Nd7 {[%emt 0:04:35]} 16. Bxd7+ {[%emt 0:00:59]} Bxd7 {[%emt 0:00:12]} 17. Rb3 {[%emt 0:01:55]} Qa5 {[%emt 0:26:02]} 18. Rxb7 {[%emt 0:01:08]} Nxe5 {[%emt 0:21:58]} 19. O-O {[%emt 0:01:13]} Qc5 {[%emt 0:03:56]} 20. Ne4 {[%emt 0:31:08]} Nc4 {[%emt 0:00:06]} 21. Nxc5 {[%emt 0:00:45]} Nxd2 {[%emt 0:00:05]} 22. Rxd7 {[%emt 0:00:50]} Nxf1 {[%emt 0:05:19]} 23. Kxf1 {[%emt 0:00:39]} O-O {[%emt 0:05:11]} 24. Ndb3 {[%emt 0:03:21]} Rfc8 {[%emt 0:00:33]} 25. Ke2 {[%emt 0:01:37]} Rc6 {[%emt 0:00:18]} 26. Rc7 {[%emt 0:06:19]} Rxc7 {[%emt 0:01:27]} 27. Bxc7 {[%emt 0:00:03]} f5 {[%emt 0:00:34]} 28. Nxe6 {[%emt 0:06:18]} Re8 {[%emt 0:00:31]} 29. Nbc5 {[%emt 0:00:11]} Kf7 {[%emt 0:00:46]} 30. Kf3 {[%emt 0:01:08]} Rxe6 {[%emt 0:00:28]} 31. Nxe6 {[%emt 0:00:05]} Kxe6 {[%emt 0:00:03]} 32. g4 {[%emt 0:02:35]} Bc3 {[%emt 0:02:47]} 33. h3 {[%emt 0:06:34]} Kf6 {[%emt 0:00:38]} 34. h4 {[%emt 0:04:47]} gxh4 {[%emt 0:01:00]} 35. Bd8+ {[%emt 0:00:14]} Ke6 {[%emt 0:00:32]} 36. Bxh4 {[%emt 0:00:26]} fxg4+ {[%emt 0:00:09]} 37. Kxg4 {[%emt 0:00:03]} Kd5 {[%emt 0:00:13]} 38. Kh5 {[%emt 0:09:50]} Bd2 {[%emt 0:00:12]} 39. Bf6 {[%emt 0:01:49]} Kc4 {[%emt 0:00:44]} 40. Bg7 {[%emt 0:00:00]} Kb4 {[%emt 0:00:00]} 41. Bxh6 {[%emt 0:19:55]} Bxh6 {[%emt 0:16:07]} 42. Kxh6 {[%emt 0:00:05]} Kc3 {[%emt 0:01:16]} 43. Kg5 {[%emt 0:01:58]} Kxc2 {[%emt 0:00:09]} 44. Kf4 {[%emt 0:00:28]} Kb2 {[%emt 0:00:09]} 45. a4 {[%emt 0:00:16]} Kb3 {[%emt 0:00:17]} 46. a5 {[%emt 0:00:19]} Kb4 {[%emt 0:00:06]} 47. Ke3 {[%emt 0:00:11]} 1/2-1/2

[Event "11th Arad Open 2018"]
[Site "Arad"]
[Date "2018.08.07"]
[Round "4"]
[White "Nastase, Robert-Paul"]
[Black "Solcanean, Serghei"]
[Result "1/2-1/2"]
[ECO "D15"]
[WhiteElo "2299"]
[BlackElo "2051"]
[Annotator "NA"]
[PlyCount "114"]
[EventDate "2018.08.05"]
[EventType "swiss"]
[EventCountry "ROU"]
[SourceTitle "playchess.com"]
[Source "ChessBase"]
[SourceQuality "1"]
[TimeControl "40/5400+30:1800+30"]

1. d4 {[%emt 0:00:00]} Nf6 {[%emt 0:01:09]} 2. c4 {[%emt 0:00:00]} c6 {[%emt 0:00:08]} 3. Nc3 {[%emt 0:00:00]} d5 {[%emt 0:00:12]} 4. Nf3 {[%emt 0:00:00]} a6 {[%emt 0:00:41]} 5. c5 {[%emt 0:00:00]} Nbd7 {[%emt 0:00:09]} 6. Bf4 {[%emt 0:00:08]} Nh5 {[%emt 0:00:14]} 7. Bg5 {[%emt 0:00:04]} g6 {[%emt 0:00:33]} 8. e4 {[%emt 0:00:12]} f6 {[%emt 0:00:29]} 9. Be3 {[%emt 0:03:08]} e6 {[%emt 0:00:12]} 10. Be2 {[%emt 0:08:17]} Be7 {[%emt 0:01:58]} 11. Bh6 {[%emt 0:09:38]} Kf7 {[%emt 0:02:04]} 12. Nd2 {[%emt 0:08:33]} Ng7 {[%emt 0:04:23]} 13. f3 {[%emt 0:03:33]} f5 {[%emt 0:00:37]} 14. O-O {[%emt 0:01:55]} Re8 {[%emt 0:00:25]} 15. b4 {[%emt 0:03:59]} Kg8 {[%emt 0:00:46]} 16. Nb3 {[%emt 0:00:24]} dxe4 {[%emt 0:02:16]} 17. fxe4 {[%emt 0:00:23]} Nf6 {[%emt 0:00:10]} 18. e5 {[%emt 0:09:01]} Nd5 {[%emt 0:00:13]} 19. Nxd5 {[%emt 0:00:11]} exd5 {[%emt 0:00:52]} 20. Qd2 {[%emt 0:01:50]} Ne6 {[%emt 0:00:55]} 21. a4 {[%emt 0:03:00]} Bd7 {[%emt 0:01:04]} 22. b5 {[%emt 0:04:36]} axb5 {[%emt 0:03:04]} 23. axb5 {[%emt 0:00:07]} Rxa1 {[%emt 0:00:03]} 24. Rxa1 {[%emt 0:00:06]} Bg5 {[%emt 0:00:05]} 25. Bxg5 {[%emt 0:00:16]} Qxg5 {[%emt 0:00:08]} 26. Qxg5 {[%emt 0:00:23]} Nxg5 {[%emt 0:00:08]} 27. Ra7 {[%emt 0:00:40]} Rb8 {[%emt 0:01:00]} 28. b6 {[%emt 0:03:04]} Ne6 {[%emt 0:00:46]} 29. Kf2 {[%emt 0:00:12]} Bc8 {[%emt 0:02:06]} 30. h4 {[%emt 0:01:42]} h6 {[%emt 0:00:10]} 31. g3 {[%emt 0:00:41]} g5 {[%emt 0:00:19]} 32. hxg5 {[%emt 0:01:13]} hxg5 {[%emt 0:00:06]} 33. Ke3 {[%emt 0:00:14]} Kg7 {[%emt 0:00:47]} 34. Bd3 {[%emt 0:00:25]} f4+ {[%emt 0:05:08]} 35. gxf4 {[%emt 0:00:23]} Nxf4 {[%emt 0:00:07]} 36. Bc2 {[%emt 0:01:42]} Kh6 {[%emt 0:01:06]} 37. Bd1 {[%emt 0:06:37]} Kg6 {[%emt 0:00:30]} 38. Kf3 {[%emt 0:00:53]} Ne6 {[%emt 0:03:27]} 39. Kg3 {[%emt 0:00:08]} Nd8 {[%emt 0:00:38]} 40. Ra2 {[%emt 0:00:00]} Bf5 {[%emt 0:00:00]} 41. Bg4 {[%emt 0:26:19]} Bxg4 {[%emt 0:17:20]} 42. Kxg4 {[%emt 0:00:06]} Nf7 {[%emt 0:00:20]} 43. Ra7 {[%emt 0:08:57]} Nh6+ {[%emt 0:02:01]} 44. Kh3 {[%emt 0:00:04]} Nf5 {[%emt 0:00:25]} 45. Kg2 {[%emt 0:00:59]} g4 {[%emt 0:00:37]} 46. Na5 {[%emt 0:02:40]} Nxd4 {[%emt 0:01:08]} 47. Rxb7 {[%emt 0:00:06]} Rxb7 {[%emt 0:18:57]} 48. Nxb7 {[%emt 0:00:06]} Ne6 {[%emt 0:00:06]} 49. Kg3 {[%emt 0:00:04]} Kg5 {[%emt 0:00:54]} 50. Na5 {[%emt 0:01:53]} Nxc5 {[%emt 0:00:16]} 51. Nxc6 {[%emt 0:00:10]} Kf5 {[%emt 0:01:29]} 52. Nb4 {[%emt 0:00:23]} d4 {[%emt 0:03:32]} 53. Nd3 {[%emt 0:00:28]} Nb7 {[%emt 0:00:27]} 54. Kh4 {[%emt 0:00:14]} Nd8 {[%emt 0:00:40]} 55. Kg3 {[%emt 0:01:16]} Nb7 {[%emt 0:00:09]} 56. Kh4 {[%emt 0:00:56]} Nd8 {[%emt 0:00:09]} 57. Kg3 {[%emt 0:00:05]} Nb7 {[%emt 0:00:15]} 1/2-1/2

[Event "11th Arad Open 2018"]
[Site "Arad"]
[Date "2018.08.07"]
[Round "4"]
[White "Gheorghiu, Calin"]
[Black "Soltanici, Ruslan"]
[Result "1-0"]
[ECO "E20"]
[WhiteElo "2292"]
[BlackElo "2383"]
[Annotator "NA"]
[PlyCount "95"]
[EventDate "2018.08.05"]
[EventType "swiss"]
[EventCountry "ROU"]
[SourceTitle "playchess.com"]
[Source "ChessBase"]
[SourceQuality "1"]
[TimeControl "40/5400+30:1800+30"]

1. d4 {[%emt 0:00:00]} Nf6 {[%emt 0:00:00]} 2. c4 {[%emt 0:00:15]} e6 {[%emt 0:00:09]} 3. Nc3 {[%emt 0:00:39]} Bb4 {[%emt 0:00:17]} 4. f3 {[%emt 0:00:42]} d5 {[%emt 0:01:19]} 5. a3 {[%emt 0:01:38]} Be7 {[%emt 0:00:56]} 6. e4 {[%emt 0:07:31]} dxe4 {[%emt 0:00:59]} 7. fxe4 {[%emt 0:02:19]} c5 {[%emt 0:01:17]} 8. d5 {[%emt 0:11:22]} exd5 {[%emt 0:00:35]} 9. cxd5 {[%emt 0:08:28]} Bd6 {[%emt 0:01:39]} 10. Bb5+ {[%emt 0:16:08]} Nbd7 {[%emt 0:01:38]} 11. Bg5 {[%emt 0:04:35]} O-O {[%emt 0:05:40]} 12. Bxd7 {[%emt 0:07:05]} Qxd7 {[%emt 0:07:47]} 13. Bxf6 {[%emt 0:04:44]} gxf6 {[%emt 0:02:23]} 14. Nf3 {[%emt 0:01:14]} Qg4 {[%emt 0:02:49]} 15. Qc2 {[%emt 0:06:18]} Bd7 {[%emt 0:07:28]} 16. O-O {[%emt 0:03:25]} Rae8 {[%emt 0:16:53]} 17. Rae1 {[%emt 0:00:59]} Qg6 {[%emt 0:07:17]} 18. a4 {[%emt 0:06:54]} a6 {[%emt 0:08:33]} 19. Kh1 {[%emt 0:00:26]} b5 {[%emt 0:06:06]} 20. axb5 {[%emt 0:00:02]} axb5 {[%emt 0:00:07]} 21. Nh4 {[%emt 0:00:23]} Qh6 {[%emt 0:01:37]} 22. g3 {[%emt 0:01:51]} Kh8 {[%emt 0:08:19]} 23. Qf2 {[%emt 0:00:02]} b4 {[%emt 0:01:17]} 24. Nd1 {[%emt 0:01:12]} Be5 {[%emt 0:05:30]} 25. Qxc5 {[%emt 0:00:19]} Rg8 {[%emt 0:00:10]} 26. Qf2 {[%emt 0:01:57]} Bh3 {[%emt 0:04:16]} 27. Rg1 {[%emt 0:00:43]} Rc8 {[%emt 0:00:05]} 28. Ne3 {[%emt 0:06:35]} b3 {[%emt 0:00:49]} 29. Re2 {[%emt 0:01:57]} Bd4 {[%emt 0:04:13]} 30. Qf3 {[%emt 0:00:53]} Qg5 {[%emt 0:03:19]} 31. Rge1 {[%emt 0:01:15]} Qe5 {[%emt 0:00:31]} 32. Nhf5 {[%emt 0:01:37]} Bxb2 {[%emt 0:00:46]} 33. d6 {[%emt 0:00:54]} Bxf5 {[%emt 0:01:09]} 34. Nxf5 {[%emt 0:01:02]} Bc3 {[%emt 0:00:04]} 35. d7 {[%emt 0:00:33]} Rb8 {[%emt 0:00:37]} 36. Rb1 {[%emt 0:01:03]} b2 {[%emt 0:00:09]} 37. Rc2 {[%emt 0:00:13]} Ba5 {[%emt 0:01:08]} 38. Qf4 {[%emt 0:00:02]} Qxf4 {[%emt 0:00:35]} 39. gxf4 {[%emt 0:00:01]} Rbd8 {[%emt 0:00:29]} 40. Rc5 {[%emt 0:00:00]} Bd2 {[%emt 0:00:00]} 41. Rd5 {[%emt 0:27:18]} Bc1 {[%emt 0:21:51]} 42. Ne7 {[%emt 0:00:48]} f5 {[%emt 0:03:11]} 43. e5 {[%emt 0:02:33]} h5 {[%emt 0:05:37]} 44. Nc6 {[%emt 0:01:46]} Kg7 {[%emt 0:00:44]} 45. Kg2 {[%emt 0:00:27]} Kg6 {[%emt 0:01:36]} 46. Kf3 {[%emt 0:00:07]} Ra8 {[%emt 0:00:07]} 47. Ne7+ {[%emt 0:00:34]} Kh7 {[%emt 0:00:31]} 48. Nxg8 {[%emt 0:00:03]} 1-0

[Event "11th Arad Open 2018"]
[Site "Arad"]
[Date "2018.08.07"]
[Round "4"]
[White "Pisu, Robert-Daniel"]
[Black "Leszko, Bence"]
[Result "1/2-1/2"]
[ECO "A00"]
[WhiteElo "2282"]
[BlackElo "2011"]
[Annotator "NA"]
[PlyCount "71"]
[EventDate "2018.08.05"]
[EventType "swiss"]
[EventCountry "ROU"]
[SourceTitle "playchess.com"]
[Source "ChessBase"]
[SourceQuality "1"]
[TimeControl "40/5400+30:1800+30"]

1. g3 {[%emt 0:00:00]} e6 {[%emt 0:01:06]} 2. Bg2 {[%emt 0:00:28]} d5 {[%emt 0:00:26]} 3. c4 {[%emt 0:00:17]} f5 {[%emt 0:00:29]} 4. Nf3 {[%emt 0:05:39]} Nf6 {[%emt 0:00:43]} 5. b3 {[%emt 0:01:11]} c6 {[%emt 0:01:05]} 6. O-O {[%emt 0:10:25]} Bd6 {[%emt 0:01:17]} 7. Bb2 {[%emt 0:02:57]} O-O {[%emt 0:01:42]} 8. Qc2 {[%emt 0:01:09]} Qe7 {[%emt 0:02:33]} 9. Be5 {[%emt 0:10:46]} Nbd7 {[%emt 0:01:49]} 10. Bxd6 {[%emt 0:00:34]} Qxd6 {[%emt 0:00:02]} 11. cxd5 {[%emt 0:02:44]} Nxd5 {[%emt 0:08:16]} 12. d4 {[%emt 0:09:49]} e5 {[%emt 0:02:06]} 13. dxe5 {[%emt 0:03:20]} Nxe5 {[%emt 0:00:12]} 14. Nbd2 {[%emt 0:00:36]} Nxf3+ {[%emt 0:02:33]} 15. Nxf3 {[%emt 0:00:17]} Nf6 {[%emt 0:15:32]} 16. Rfd1 {[%emt 0:04:20]} Qe7 {[%emt 0:00:35]} 17. e3 {[%emt 0:10:36]} Be6 {[%emt 0:01:59]} 18. Nd4 {[%emt 0:01:00]} g6 {[%emt 0:00:11]} 19. Nxe6 {[%emt 0:00:50]} Qxe6 {[%emt 0:00:01]} 20. Rd4 {[%emt 0:00:33]} Rad8 {[%emt 0:01:26]} 21. Rad1 {[%emt 0:00:20]} Rxd4 {[%emt 0:00:27]} 22. Rxd4 {[%emt 0:00:09]} Qe7 {[%emt 0:02:14]} 23. Qd2 {[%emt 0:08:38]} Qc7 {[%emt 0:03:49]} 24. Rd6 {[%emt 0:02:03]} Rf7 {[%emt 0:04:24]} 25. Qd4 {[%emt 0:00:54]} c5 {[%emt 0:07:12]} 26. Qe5 {[%emt 0:05:03]} b6 {[%emt 0:07:36]} 27. Bf1 {[%emt 0:03:38]} Kg7 {[%emt 0:04:04]} 28. Bc4 {[%emt 0:00:12]} Qe7 {[%emt 0:00:12]} 29. Re6 {[%emt 0:04:42]} Qc7 {[%emt 0:00:15]} 30. Rd6 {[%emt 0:03:16]} Qe7 {[%emt 0:00:24]} 31. Be6 {[%emt 0:01:59]} Qe8 {[%emt 0:03:11]} 32. Qc3 {[%emt 0:03:15]} Qe7 {[%emt 0:03:20]} 33. Qe5 {[%emt 0:00:25]} Qe8 {[%emt 0:00:06]} 34. Qc3 {[%emt 0:03:07]} Qe7 {[%emt 0:00:05]} 35. Rc6 {[%emt 0:00:41]} Qe8 {[%emt 0:02:28]} 36. Rd6 {[%emt 0:00:47]} 1/2-1/2

[Event "11th Arad Open 2018"]
[Site "Arad"]
[Date "2018.08.07"]
[Round "4"]
[White "Cvetkovic, Srdjan"]
[Black "Peptan, Corina-Isabela"]
[Result "1/2-1/2"]
[ECO "A21"]
[WhiteElo "2252"]
[BlackElo "2380"]
[Annotator "NA"]
[PlyCount "105"]
[EventDate "2018.08.05"]
[EventType "swiss"]
[EventCountry "ROU"]
[SourceTitle "playchess.com"]
[Source "ChessBase"]
[SourceQuality "1"]
[TimeControl "40/5400+30:1800+30"]

1. c4 {[%emt 0:00:00]} e5 {[%emt 0:00:00]} 2. Nc3 {[%emt 0:00:37]} Bb4 {[%emt 0:00:16]} 3. Qc2 {[%emt 0:03:47]} Nf6 {[%emt 0:01:00]} 4. a3 {[%emt 0:03:02]} Bxc3 {[%emt 0:00:57]} 5. Qxc3 {[%emt 0:00:06]} d6 {[%emt 0:02:24]} 6. g3 {[%emt 0:17:15]} Be6 {[%emt 0:05:45]} 7. Bg2 {[%emt 0:01:05]} c6 {[%emt 0:00:55]} 8. Nf3 {[%emt 0:03:49]} h6 {[%emt 0:05:21]} 9. O-O {[%emt 0:05:11]} O-O {[%emt 0:04:22]} 10. b4 {[%emt 0:03:32]} Nbd7 {[%emt 0:00:43]} 11. Bb2 {[%emt 0:00:36]} Nb6 {[%emt 0:04:16]} 12. d3 {[%emt 0:00:55]} Na4 {[%emt 0:00:21]} 13. Qc2 {[%emt 0:00:26]} Nxb2 {[%emt 0:00:27]} 14. Qxb2 {[%emt 0:00:02]} Qd7 {[%emt 0:00:49]} 15. c5 {[%emt 0:07:47]} e4 {[%emt 0:08:25]} 16. dxe4 {[%emt 0:00:36]} Nxe4 {[%emt 0:00:08]} 17. cxd6 {[%emt 0:06:13]} Nxd6 {[%emt 0:00:58]} 18. Nd4 {[%emt 0:04:44]} Bh3 {[%emt 0:02:01]} 19. Rfd1 {[%emt 0:01:58]} Bxg2 {[%emt 0:00:08]} 20. Kxg2 {[%emt 0:00:05]} Qe7 {[%emt 0:00:25]} 21. Qd2 {[%emt 0:04:11]} Rad8 {[%emt 0:01:35]} 22. Qf4 {[%emt 0:01:11]} Rfe8 {[%emt 0:05:58]} 23. e3 {[%emt 0:02:57]} Rd7 {[%emt 0:05:36]} 24. Nf5 {[%emt 0:06:14]} Nxf5 {[%emt 0:00:15]} 25. Qxf5 {[%emt 0:00:06]} Red8 {[%emt 0:00:04]} 26. Rxd7 {[%emt 0:00:17]} Rxd7 {[%emt 0:00:51]} 27. Rc1 {[%emt 0:00:31]} Rd5 {[%emt 0:00:52]} 28. Qc8+ {[%emt 0:03:11]} Kh7 {[%emt 0:12:31]} 29. Rc4 {[%emt 0:00:11]} a5 {[%emt 0:00:35]} 30. bxa5 {[%emt 0:02:04]} Rxa5 {[%emt 0:00:14]} 31. Rb4 {[%emt 0:01:56]} Rxa3 {[%emt 0:03:31]} 32. Qxb7 {[%emt 0:00:51]} Qxb7 {[%emt 0:06:05]} 33. Rxb7 {[%emt 0:00:06]} Kg6 {[%emt 0:00:02]} 34. Rc7 {[%emt 0:01:11]} Rc3 {[%emt 0:00:09]} 35. f4 {[%emt 0:01:02]} Kf6 {[%emt 0:06:08]} 36. Kf3 {[%emt 0:00:27]} h5 {[%emt 0:05:18]} 37. h3 {[%emt 0:03:40]} Ke6 {[%emt 0:01:53]} 38. g4 {[%emt 0:00:22]} hxg4+ {[%emt 0:10:03]} 39. hxg4 {[%emt 0:00:02]} g6 {[%emt 0:01:01]} 40. f5+ {[%emt 0:00:00]} Kf6 {[%emt 0:00:00]} 41. fxg6 {[%emt 0:18:51]} Kxg6 {[%emt 0:15:35]} 42. Kf4 {[%emt 0:00:27]} Rc4+ {[%emt 0:02:04]} 43. e4 {[%emt 0:00:36]} Kf6 {[%emt 0:00:24]} 44. g5+ {[%emt 0:01:00]} Ke6 {[%emt 0:00:30]} 45. Ke3 {[%emt 0:02:20]} Rc5 {[%emt 0:00:47]} 46. Kd2 {[%emt 0:01:21]} Rxg5 {[%emt 0:03:54]} 47. Rxc6+ {[%emt 0:00:07]} Ke5 {[%emt 0:00:08]} 48. Rc5+ {[%emt 0:00:27]} Kf4 {[%emt 0:00:02]} 49. Rxg5 {[%emt 0:00:08]} Kxg5 {[%emt 0:00:03]} 50. Ke3 {[%emt 0:00:05]} Kg4 {[%emt 0:00:11]} 51. Kd4 {[%emt 0:00:15]} f6 {[%emt 0:00:23]} 52. e5 {[%emt 0:00:26]} fxe5+ {[%emt 0:00:04]} 53. Kxe5 {[%emt 0:00:05]} 1/2-1/2